fUSD/lending_fUSD_20250617
["ID","MTS","AMOUNT","RATE_DAILY","PERIOD"]
[366257327,1750164711271,-490.0,0.00017095,2]
[366257328,1750164711281,-490.0,0.00017095,2]
[366257329,1750164711291,-236.20061657,0.00017095,2]
[366257330,1750164711301,-151.0,0.00017095,2]
[366257331,1750164711312,-490.0,0.00017095,2]
[366257332,1750164711322,-490.0,0.00017095,2]
[366257333,1750164711332,-490.0,0.00017095,2]
[366257334,1750164711343,-490.0,0.00017095,2]
[366257335,1750164711353,-604.26,0.00017095,2]
[366257336,1750164711363,-490.0,0.00017095,2]
[366257337,1750164711372,-490.0,0.00017095,2]
[366257338,1750164711382,-490.0,0.00017095,2]
[366257339,1750164711392,-262.778748,0.00017095,2]
[366257340,1750164711402,-598.755129,0.00017095,2]
[366257341,1750164711412,-490.0,0.00017095,2]
[366257342,1750164711422,-356.47,0.00017095,2]
[366257343,1750164711431,-494.61,0.00017095,2]
[366257344,1750164711441,-490.0,0.00017095,2]
[366257345,1750164711451,-925.36,0.00017095,2]
[366257346,1750164711461,-629.26,0.00017095,2]
[366257347,1750164711471,-490.0,0.00017095,2]
[366257348,1750164711481,-598.755129,0.00017095,2]
[366257349,1750164711491,-490.0,0.00017095,2]
[366257350,1750164711500,-1024.62,0.00017095,2]
[366257351,1750164711510,-490.0,0.00017095,2]
[366257352,1750164711520,-534.01,0.00017095,2]
[366257353,1750164711530,-490.0,0.00017095,2]
[366257354,1750164711539,-490.0,0.00017095,2]
[366257355,1750164711549,-490.0,0.00017095,2]
[366257356,1750164711559,-1219.14,0.00017095,2]
[366257357,1750164711569,-617.37046392,0.00017095,2]
[366257358,1750164711579,-490.0,0.00017095,2]
[366257359,1750164711589,-490.0,0.00017095,2]
[366257360,1750164711600,-490.0,0.00017095,2]
[366257361,1750164711610,-608.67,0.00017095,2]
[366257362,1750164711620,-628.4,0.00017095,2]
[366257363,1750164711630,-490.0,0.00017095,2]
[366257364,1750164711640,-490.0,0.00017095,2]
[366257365,1750164711651,-490.0,0.00017095,2]
[366257366,1750164711661,-490.0,0.00017095,2]
[366257367,1750164711671,-741.58,0.00017095,2]
[366257368,1750164711682,-576.72,0.00017095,2]
[366257369,1750164711692,-490.0,0.00017095,2]
[366257370,1750164711702,-490.0,0.00017095,2]
[366257371,1750164711712,-490.0,0.00017095,2]
[366257372,1750164711722,-526.38,0.00017095,2]
[366257373,1750164711732,-612.0,0.00017095,2]
[366257374,1750164711741,-638.52,0.00017095,2]
[366257375,1750164711751,-490.0,0.00017095,2]
[366257376,1750164711762,-490.0,0.00017095,2]
[366257377,1750164711772,-490.0,0.00017095,2]
[366257378,1750164711783,-514.9013825,0.00017095,2]
[366257379,1750164711792,-490.0,0.00017095,2]
[366257380,1750164711802,-565.57,0.00017095,2]
[366257381,1750164711812,-490.0,0.00017095,2]
[366257382,1750164711822,-490.0,0.00017095,2]
[366257383,1750164711831,-490.0,0.00017095,2]
[366257384,1750164711841,-490.0,0.00017095,2]
[366257385,1750164711851,-1223.14,0.00017095,2]
[366257386,1750164711861,-715.85,0.00017095,2]
[366257387,1750164711871,-490.0,0.00017095,2]
[366257388,1750164711881,-490.0,0.00017095,2]
[366257389,1750164711891,-490.0,0.00017095,2]
[366257390,1750164711901,-490.0,0.00017095,2]
[366257391,1750164711911,-490.0,0.00017095,2]
[366257392,1750164711921,-490.0,0.00017095,2]
[366257393,1750164711931,-490.0,0.00017095,2]
[366257394,1750164711940,-490.0,0.00017095,2]
[366257395,1750164711950,-1060.81,0.00017095,2]
[366257396,1750164711960,-1389.56,0.00017095,2]
[366257397,1750164711970,-627.1,0.00017095,2]
[366257398,1750164711980,-490.0,0.00017095,2]
[366257399,1750164711989,-490.0,0.00017095,2]
[366257400,1750164711999,-856.55,0.00017095,2]
[366257401,1750164712009,-490.0,0.00017095,2]
[366257402,1750164712019,-904.8,0.00017095,2]
[366257403,1750164712028,-1659.85,0.00017095,2]
[366257404,1750164712038,-614.6,0.00017095,2]
[366257405,1750164712048,-1415.52,0.00017095,2]
[366257406,1750164712057,-490.0,0.00017095,2]
[366257407,1750164712067,-490.0,0.00017095,2]
[366257408,1750164712078,-494.66783585,0.00017095,2]
[366257409,1750164712088,-490.0,0.00017095,2]
[366257410,1750164712098,-490.0,0.00017095,2]
[366257411,1750164712109,-1049.28,0.00017095,2]
[366257412,1750164712118,-490.0,0.00017095,2]
[366257413,1750164712128,-151.0,0.00017095,2]
[366257414,1750164712138,-663.92,0.00017095,2]
[366257415,1750164712148,-708.23,0.00017095,2]
[366257416,1750164712158,-614.51602499,0.00017095,2]
[366257417,1750164712168,-1322.55,0.00017095,2]
[366257418,1750164712182,-490.0,0.00017095,2]
[366257419,1750164712191,-490.0,0.00017095,2]
[366257420,1750164712201,-490.0,0.00017095,2]
[366257421,1750164712210,-490.0,0.00017095,2]
[366257422,1750164712220,-490.0,0.00017095,2]
[366257423,1750164712230,-1219.76,0.00017095,2]
[366257424,1750164712240,-2206.61,0.00017095,2]
[366257425,1750164712251,-490.0,0.00017095,2]
[366257426,1750164712260,-490.0,0.00017095,2]
[366257427,1750164712271,-731.67,0.00017095,2]
[366257428,1750164712281,-490.0,0.00017095,2]
[366257429,1750164712291,-538.95,0.00017095,2]
[366257430,1750164712301,-520.27,0.00017095,2]
[366257431,1750164712312,-490.0,0.00017095,2]
[366257432,1750164712322,-490.0,0.00017095,2]
[366257433,1750164712332,-470.24721452,0.00017095,2]
[366257434,1750164712342,-490.0,0.00017095,2]
[366257435,1750164712352,-151.0,0.00017095,2]
[366257436,1750164712362,-490.0,0.00017095,2]
[366257437,1750164712373,-490.0,0.00017095,2]
[366257438,1750164712383,-490.0,0.00017095,2]
[366257439,1750164712395,-490.0,0.00017095,2]
[366257440,1750164712406,-709.65,0.00017095,2]
[366257441,1750164712416,-490.0,0.00017095,2]
[366257442,1750164712427,-490.0,0.00017095,2]
[366257443,1750164712451,-746.18,0.00017095,2]
[366257444,1750164712464,-490.0,0.00017095,2]
[366257445,1750164712475,-490.0,0.00017095,2]
[366257446,1750164712486,-490.0,0.00017095,2]
[366257447,1750164712497,-490.0,0.00017095,2]
[366257448,1750164712508,-490.0,0.00017095,2]
[366257449,1750164712519,-490.0,0.00017095,2]
[366257450,1750164712529,-490.0,0.00017095,2]
[366257451,1750164712540,-491.40294096,0.00017095,2]
[366257452,1750164712551,-908.62,0.00017095,2]
[366257453,1750164712560,-490.0,0.00017095,2]
[366257454,1750164712570,-247.813536,0.00017095,2]
[366257455,1750164712581,-577.82,0.00017095,2]
[366257456,1750164712591,-490.0,0.00017095,2]
[366257457,1750164712602,-490.0,0.00017095,2]
[366257458,1750164712612,-490.0,0.00017095,2]
[366257459,1750164712623,-1326.45,0.00017095,2]
[366257460,1750164712633,-490.0,0.00017095,2]
[366257461,1750164712643,-247.813536,0.00017095,2]
[366257462,1750164712653,-490.0,0.00017095,2]
[366257463,1750164712665,-151.0,0.00017095,2]
[366257464,1750164712676,-957.51,0.00017095,2]
[366257465,1750164712687,-490.0,0.00017095,2]
[366257466,1750164712698,-827.74,0.00017095,2]
[366257467,1750164712708,-653.24,0.00017095,2]
[366257468,1750164712718,-490.0,0.00017095,2]
[366257469,1750164712728,-490.0,0.00017095,2]
[366257470,1750164712739,-151.0,0.00017095,2]
[366257471,1750164712749,-490.0,0.00017095,2]
[366257472,1750164712759,-490.0,0.00017095,2]
[366257473,1750164712770,-1030.84,0.00017095,2]
[366257474,1750164712780,-490.0,0.00017095,2]
[366257475,1750164712791,-490.0,0.00017095,2]
[366257476,1750164712801,-490.0,0.00017095,2]
[366257477,1750164712811,-490.0,0.00017095,2]
[366257478,1750164712822,-490.0,0.00017095,2]
[366257479,1750164712832,-151.0,0.00017095,2]
[366257480,1750164712842,-490.0,0.00017095,2]
[366257481,1750164712853,-490.0,0.00017095,2]
[366257482,1750164712863,-155.740015,0.00017095,2]
[366257483,1750164712880,-543.54,0.00017095,2]
[366257484,1750164712890,-490.0,0.00017095,2]
[366257485,1750164712901,-1310.15,0.00017095,2]
[366257486,1750164712911,-490.0,0.00017095,2]
[366257487,1750164712922,-496.68,0.00017095,2]
[366257488,1750164712933,-155.740015,0.00017095,2]
[366257489,1750164712943,-1005.43,0.00017095,2]
[366257490,1750164712954,-490.0,0.00017095,2]
[366257491,1750164712964,-490.0,0.00017095,2]
[366257492,1750164712975,-490.0,0.00017095,2]
[366257493,1750164712985,-490.0,0.00017095,2]
[366257494,1750164712995,-490.0,0.00017095,2]
[366257495,1750164713006,-490.0,0.00017095,2]
[366257496,1750164713017,-495.48,0.00017095,2]
[366257497,1750164713027,-975.37,0.00017095,2]
[366257498,1750164713036,-490.0,0.00017095,2]
[366257499,1750164713046,-490.0,0.00017095,2]
[366257500,1750164713057,-485.82687536,0.00017095,2]
[366257501,1750164713067,-490.0,0.00017095,2]
[366257502,1750164713077,-882.14,0.00017095,2]
[366257503,1750164713088,-490.0,0.00017095,2]
[366257504,1750164713098,-490.0,0.00017095,2]
[366257505,1750164713108,-492.68608306,0.00017095,2]
[366257506,1750164713118,-490.0,0.00017095,2]
[366257507,1750164713127,-490.0,0.00017095,2]
[366257508,1750164713137,-151.0,0.00017095,2]
[366257509,1750164713148,-490.0,0.00017095,2]
[366257510,1750164713157,-151.0,0.00017095,2]
[366257511,1750164713167,-490.0,0.00017095,2]
[366257512,1750164713181,-227.40069201,0.00017095,2]
[366257513,1750164713191,-490.0,0.00017095,2]
[366257514,1750164713201,-151.0,0.00017095,2]
[366257515,1750164713211,-151.0,0.00017095,2]
[366257516,1750164713222,-490.0,0.00017095,2]
[366257517,1750164713233,-534.08,0.00017095,2]
[366257518,1750164713244,-490.0,0.00017095,2]
[366257519,1750164713256,-659.94,0.00017095,2]
[366257520,1750164713266,-490.0,0.00017095,2]
[366257521,1750164713277,-490.0,0.00017095,2]
[366257522,1750164713287,-490.0,0.00017095,2]
[366257523,1750164713297,-151.0,0.00017095,2]
[366257524,1750164713308,-1026.29,0.00017095,2]
[366257525,1750164713318,-490.0,0.00017095,2]
[366257526,1750164713334,-151.0,0.00017095,2]
[366257527,1750164713345,-490.0,0.00017095,2]
[366257528,1750164713586,-151.0,0.00017095,2]
[366257529,1750164713597,-490.0,0.00017095,2]
[366257530,1750164713608,-817.67,0.00017095,2]
[366257531,1750164713618,-490.0,0.00017095,2]
[366257532,1750164713628,-490.0,0.00017095,2]
[366257533,1750164713638,-151.0,0.00017095,2]
[366257534,1750164713648,-490.0,0.00017095,2]
[366257535,1750164713658,-531.3,0.00017095,2]
[366257536,1750164713668,-214.597583,0.00017095,2]
[366257537,1750164713678,-490.0,0.00017095,2]
[366257538,1750164713694,-490.0,0.00017095,2]
[366257539,1750164713705,-214.597583,0.00017095,2]
[366257540,1750164713715,-490.0,0.00017095,2]
[366257541,1750164713725,-490.0,0.00017095,2]
[366257542,1750164713735,-397.15,0.00017095,2]
[366257543,1750164713745,-490.0,0.00017095,2]
[366257544,1750164713757,-490.0,0.00017095,2]
[366257545,1750164713767,-490.0,0.00017095,2]
[366257546,1750164713777,-1100.14,0.00017095,2]
[366257547,1750164713787,-490.0,0.00017095,2]
[366257548,1750164713797,-490.0,0.00017095,2]
[366257549,1750164713807,-660.53,0.00017095,2]
[366257550,1750164713817,-962.4,0.00017095,2]
[366257551,1750164713827,-490.0,0.00017095,2]
[366257552,1750164713837,-490.0,0.00017095,2]
[366257553,1750164713847,-490.0,0.00017095,2]
[366257554,1750164713857,-490.0,0.00017095,2]
[366257555,1750164713867,-490.0,0.00017095,2]
[366257556,1750164713877,-490.0,0.00017095,2]
[366257557,1750164713886,-490.0,0.00017095,2]
[366257558,1750164713896,-490.0,0.00017095,2]
[366257559,1750164713906,-490.0,0.00017095,2]
[366257560,1750164713916,-720.15,0.00017095,2]
[366257561,1750164713925,-490.0,0.00017095,2]
[366257562,1750164713935,-490.0,0.00017095,2]
[366257563,1750164713944,-490.0,0.00017095,2]
[366257564,1750164713955,-490.0,0.00017095,2]
[366257565,1750164713965,-1377.37,0.00017095,2]
[366257566,1750164713975,-490.0,0.00017095,2]
[366257567,1750164713984,-498.02,0.00017095,2]
[366257568,1750164713995,-151.0,0.00017095,2]
[366257569,1750164714004,-490.0,0.00017095,2]
[366257570,1750164714014,-490.0,0.00017095,2]
[366257571,1750164714023,-490.0,0.00017095,2]
[366257572,1750164714033,-440.0,0.00017095,2]
[366257573,1750164714043,-490.0,0.00017095,2]
[366257574,1750164714053,-490.0,0.00017095,2]
[366257575,1750164714063,-151.0,0.00017095,2]
[366257576,1750164714074,-490.0,0.00017095,2]
[366257577,1750164714084,-490.0,0.00017095,2]
[366257578,1750164714094,-490.0,0.00017095,2]
[366257579,1750164714104,-490.0,0.00017095,2]
[366257580,1750164714114,-490.0,0.00017095,2]
[366257581,1750164714123,-490.0,0.00017095,2]
[366257582,1750164714134,-1323.87,0.00017095,2]
[366257583,1750164714144,-250.0,0.00017095,2]
[366257584,1750164714155,-490.0,0.00017095,2]
[366257585,1750164714165,-490.0,0.00017095,2]
[366257586,1750164714177,-491.61154044,0.00017095,2]
[366257587,1750164714187,-490.0,0.00017095,2]
[366257588,1750164714196,-820.55,0.00017095,2]
[366257589,1750164714206,-490.0,0.00017095,2]
[366257590,1750164714215,-490.0,0.00017095,2]
[366257591,1750164714224,-155.801001,0.00017095,2]
[366257592,1750164714233,-1759.73,0.00017095,2]
[366257593,1750164714243,-490.0,0.00017095,2]
[366257594,1750164714252,-490.0,0.00017095,2]
[366257595,1750164714261,-490.0,0.00017095,2]
[366257596,1750164714270,-490.0,0.00017095,2]
[366257597,1750164714279,-155.801001,0.00017095,2]
[366257598,1750164714289,-490.0,0.00017095,2]
[366257599,1750164714298,-490.0,0.00017095,2]
[366257600,1750164714308,-763.5,0.00017095,2]
[366257601,1750164714318,-727.1,0.00017095,2]
[366257602,1750164714328,-490.0,0.00017095,2]
[366257603,1750164714338,-490.0,0.00017095,2]
[366257604,1750164714348,-1756.61,0.00017095,2]
[366257605,1750164714359,-281.08444548,0.00017095,2]
[366257606,1750164714369,-887.07,0.00017095,2]
[366257607,1750164714379,-2106.23,0.00017095,2]
[366257608,1750164714389,-490.0,0.00017095,2]
[366257609,1750164714399,-490.0,0.00017095,2]
[366257610,1750164714409,-151.0,0.00017095,2]
[366257611,1750164714420,-490.0,0.00017095,2]
[366257612,1750164714430,-493.87048298,0.00017095,2]
[366257613,1750164714440,-490.0,0.00017095,2]
[366257614,1750164714451,-3566.07,0.00017095,2]
[366257615,1750164714461,-490.0,0.00017095,2]
[366257616,1750164714470,-1019.07,0.00017095,2]
[366257617,1750164714480,-2465.54,0.00017095,2]
[366257618,1750164714490,-1459.85,0.00017095,2]
[366257619,1750164714500,-1002.31,0.00017095,2]
[366257620,1750164714509,-204.362561,0.00017095,2]
[366257621,1750164714519,-490.0,0.00017095,2]
[366257622,1750164714529,-1541.9,0.00017095,2]
[366257623,1750164714538,-490.0,0.00017095,2]
[366257624,1750164714547,-490.0,0.00017095,2]
[366257625,1750164714558,-490.0,0.00017095,2]
[366257626,1750164714567,-490.0,0.00017095,2]
[366257627,1750164714578,-490.0,0.00017095,2]
[366257628,1750164714588,-1285.58,0.00017095,2]
[366257629,1750164714598,-490.0,0.00017095,2]
[366257630,1750164714608,-490.0,0.00017095,2]
[366257631,1750164714617,-490.0,0.00017095,2]
[366257632,1750164714627,-2302.59,0.00017095,2]
[366257633,1750164714637,-490.0,0.00017095,2]
[366257634,1750164714646,-490.0,0.00017095,2]
[366257635,1750164714656,-552.55,0.00017095,2]
[366257636,1750164714666,-1209.47,0.00017095,2]
[366257637,1750164714676,-488.19611162,0.00017095,2]
[366257638,1750164714686,-1099.79,0.00017095,2]
[366257639,1750164714708,-490.0,0.00017095,2]
[366257640,1750164714718,-490.0,0.00017095,2]
[366257641,1750164714728,-815.84,0.00017095,2]
[366257642,1750164714738,-490.0,0.00017095,2]
[366257643,1750164714747,-1690.85,0.00017095,2]
[366257644,1750164714757,-151.0,0.00017095,2]
[366257645,1750164714767,-501.65188438,0.00017095,2]
[366257646,1750164714777,-490.0,0.00017095,2]
[366257647,1750164714786,-559.46714059,0.00017095,2]
[366257648,1750164714796,-439.74820346,0.00017095,2]
[366257649,1750164714806,-490.0,0.00017095,2]
[366257650,1750164714815,-490.0,0.00017095,2]
[366257651,1750164714825,-490.0,0.00017095,2]
[366257652,1750164714835,-490.0,0.00017095,2]
[366257653,1750164714845,-491.86527888,0.00017095,2]
[366257654,1750164714855,-1609.53,0.00017095,2]
[366257655,1750164714864,-2309.01,0.00017095,2]
[366257656,1750164714874,-490.0,0.00017095,2]
[366257657,1750164714884,-491.21,0.00017095,2]
[366257658,1750164714894,-490.0,0.00017095,2]
[366257659,1750164714903,-1850.524618,0.00017095,2]
[366257660,1750164714913,-490.0,0.00017095,2]
[366257661,1750164714922,-490.0,0.00017095,2]
[366257662,1750164714932,-490.0,0.00017095,2]
[366257663,1750164714942,-3025.16,0.00017095,2]
[366257664,1750164714951,-490.0,0.00017095,2]
[366257665,1750164714960,-490.0,0.00017095,2]
[366257666,1750164714971,-1827.87,0.00017095,2]
[366257667,1750164714980,-978.71,0.00017095,2]
[366257668,1750164714990,-490.0,0.00017095,2]
[366257669,1750164715001,-2376.97,0.00017095,2]
[366257670,1750164715011,-473.94657642,0.00017095,2]
[366257671,1750164715021,-490.0,0.00017095,2]
[366257672,1750164715032,-665.58,0.00017095,2]
[366257673,1750164715041,-2059.97,0.00017095,2]
[366257674,1750164715053,-490.0,0.00017095,2]
[366257675,1750164715063,-164.92480477,0.00017095,2]
[366257676,1750164715072,-490.0,0.00017095,2]
[366257677,1750164715082,-490.0,0.00017095,2]
[366257678,1750164715092,-2092.53,0.00017095,2]
[366257679,1750164715102,-490.0,0.00017095,2]
[366257680,1750164715112,-490.0,0.00017095,2]
[366257681,1750164715122,-5417.93,0.00017095,2]
[366257682,1750164715132,-1763.65,0.00017095,2]
[366257683,1750164715147,-490.0,0.00017095,2]
[366257684,1750164715158,-1518.66,0.00017095,2]
[366257685,1750164715169,-490.0,0.00017095,2]
[366257686,1750164715182,-490.0,0.00017095,2]
[366257687,1750164715192,-947.96,0.00017095,2]
[366257688,1750164715202,-490.0,0.00017095,2]
[366257689,1750164715212,-1099.29,0.00017095,2]
[366257690,1750164715223,-490.0,0.00017095,2]
[366257691,1750164715233,-490.0,0.00017095,2]
[366257692,1750164715242,-490.0,0.00017095,2]
[366257693,1750164715254,-151.0,0.00017095,2]
[366257694,1750164715264,-490.0,0.00017095,2]
[366257695,1750164715274,-1237.37,0.00017095,2]
[366257696,1750164715284,-490.0,0.00017095,2]
[366257697,1750164715294,-213.781959,0.00017095,2]
[366257698,1750164715304,-490.0,0.00017095,2]
[366257699,1750164715314,-6182.7,0.00017095,2]
[366257700,1750164715324,-492.19,0.00017095,2]
[366257701,1750164715334,-490.0,0.00017095,2]
[366257702,1750164715344,-734.6,0.00017095,2]
[366257703,1750164715354,-1065.56,0.00017095,2]
[366257704,1750164715364,-213.781959,0.00017095,2]
[366257705,1750164715374,-833.42,0.00017095,2]
[366257706,1750164715384,-490.0,0.00017095,2]
[366257707,1750164715395,-490.0,0.00017095,2]
[366257708,1750164715405,-7839.6,0.00017095,2]
[366257709,1750164715416,-490.0,0.00017095,2]
[366257710,1750164715426,-490.0,0.00017095,2]
[366257711,1750164715436,-1638.538412,0.00017095,2]
[366257712,1750164715446,-490.0,0.00017095,2]
[366257713,1750164715456,-490.0,0.00017095,2]
[366257714,1750164715465,-556.2,0.00017095,2]
[366257715,1750164715476,-16871.86,0.00017095,2]
[366257716,1750164715486,-490.0,0.00017095,2]
[366257717,1750164715496,-490.0,0.00017095,2]
[366257718,1750164715506,-2361.36,0.00017095,2]
[366257719,1750164715516,-1710.39,0.00017095,2]
[366257720,1750164715526,-490.0,0.00017095,2]
[366257721,1750164715536,-157.08197,0.00017095,2]
[366257722,1750164715547,-490.0,0.00017095,2]
[366257723,1750164715556,-490.0,0.00017095,2]
[366257724,1750164715567,-5618.96,0.00017095,2]
[366257725,1750164715577,-490.0,0.00017095,2]
[366257726,1750164715587,-606.69,0.00017095,2]
[366257727,1750164715603,-490.0,0.00017095,2]
[366257728,1750164715614,-1285.51,0.00017095,2]
[366257729,1750164715625,-583.96,0.00017095,2]
[366257730,1750164715636,-490.0,0.00017095,2]
[366257731,1750164715646,-490.0,0.00017095,2]
[366257732,1750164715656,-490.0,0.00017095,2]
[366257733,1750164715667,-490.0,0.00017095,2]
[366257734,1750164715678,-894.67,0.00017095,2]
[366257735,1750164715688,-568.94,0.00017095,2]
[366257736,1750164715699,-490.0,0.00017095,2]
[366257737,1750164715709,-490.0,0.00017095,2]
[366257738,1750164715721,-490.0,0.00017095,2]
[366257739,1750164715732,-490.0,0.00017095,2]
[366257740,1750164715743,-490.0,0.00017095,2]
[366257741,1750164715754,-2491.31,0.00017095,2]
[366257742,1750164715765,-490.0,0.00017095,2]
[366257743,1750164715775,-490.0,0.00017095,2]
[366257744,1750164715785,-523.4,0.00017095,2]
[366257745,1750164715795,-490.0,0.00017095,2]
[366257746,1750164715806,-490.0,0.00017095,2]
[366257747,1750164715816,-490.0,0.00017095,2]
[366257748,1750164715827,-490.0,0.00017095,2]
[366257749,1750164715838,-541.7,0.00017095,2]
[366257750,1750164715848,-1277.93,0.00017095,2]
[366257751,1750164715859,-490.0,0.00017095,2]
[366257752,1750164715870,-709.0,0.00017095,2]
[366257753,1750164715880,-1650.05,0.00017095,2]
[366257754,1750164715891,-490.0,0.00017095,2]
[366257755,1750164715902,-490.0,0.00017095,2]
[366257756,1750164715914,-490.0,0.00017095,2]
[366257757,1750164715924,-704.002625,0.00017095,2]
[366257758,1750164715935,-761.47,0.00017095,2]
[366257759,1750164715946,-490.0,0.00017095,2]
[366257760,1750164715957,-490.0,0.00017095,2]
[366257761,1750164715969,-490.0,0.00017095,2]
[366257762,1750164715979,-490.0,0.00017095,2]
[366257763,1750164715992,-490.0,0.00017095,2]
[366257764,1750164716003,-490.0,0.00017095,2]
[366257765,1750164716013,-704.002625,0.00017095,2]
[366257766,1750164716024,-1193.08,0.00017095,2]
[366257767,1750164716039,-664.73,0.00017095,2]
[366257768,1750164716050,-490.0,0.00017095,2]
[366257769,1750164716061,-490.0,0.00017095,2]
[366257770,1750164716072,-2646.76,0.00017095,2]
[366257771,1750164716083,-171.296575,0.00017095,2]
[366257772,1750164716094,-2826.37,0.00017095,2]
[366257773,1750164716104,-490.0,0.00017095,2]
[366257774,1750164716115,-490.0,0.00017095,2]
[366257775,1750164716126,-490.0,0.00017095,2]
[366257776,1750164716136,-490.0,0.00017095,2]
[366257777,1750164716147,-490.0,0.00017095,2]
[366257778,1750164716158,-490.0,0.00017095,2]
[366257779,1750164716169,-171.296575,0.00017095,2]
[366257780,1750164716182,-4780.04,0.00017095,2]
[366257781,1750164716193,-490.0,0.00017095,2]
[366257782,1750164716204,-391.508113,0.00017095,2]
[366257783,1750164716215,-490.0,0.00017095,2]
[366257784,1750164716225,-653.71,0.00017095,2]
[366257785,1750164716235,-490.0,0.00017095,2]
[366257786,1750164716247,-490.0,0.00017095,2]
[366257787,1750164716258,-490.0,0.00017095,2]
[366257788,1750164716270,-1164.36,0.00017095,2]
[366257789,1750164716280,-1477.76,0.00017095,2]
[366257790,1750164716291,-501.58,0.00017095,2]
[366257791,1750164716302,-490.0,0.00017095,2]
[366257792,1750164716313,-391.508113,0.00017095,2]
[366257793,1750164716324,-490.0,0.00017095,2]
[366257794,1750164716334,-490.0,0.00017095,2]
[366257795,1750164716345,-623.53,0.00017095,2]
[366257796,1750164716357,-2200.08,0.00017095,2]
[366257797,1750164716368,-490.0,0.00017095,2]
[366257798,1750164716379,-490.0,0.00017095,2]
[366257799,1750164716390,-1524.61,0.00017095,2]
[366257800,1750164716401,-490.0,0.00017095,2]
[366257801,1750164716413,-490.0,0.00017095,2]
[366257802,1750164716425,-490.0,0.00017095,2]
[366257803,1750164716436,-2456.65,0.00017095,2]
[366257804,1750164716448,-1238.18,0.00017095,2]
[366257805,1750164716459,-490.0,0.00017095,2]
[366257806,1750164716471,-532.52722365,0.00017095,2]
[366257807,1750164716494,-927.08,0.00017095,2]
[366257808,1750164716507,-1289.32,0.00017095,2]
[366257809,1750164716519,-490.0,0.00017095,2]
[366257810,1750164716531,-8543.47,0.00017095,2]
[366257811,1750164716543,-284.9784647,0.00017095,2]
[366257812,1750164716554,-700.04,0.00017095,2]
[366257813,1750164716566,-490.0,0.00017095,2]
[366257814,1750164716578,-436.65325178,0.00017095,2]
[366257815,1750164716590,-490.0,0.00017095,2]
[366257816,1750164716602,-490.0,0.00017095,2]
[366257817,1750164716613,-1722.14,0.00017095,2]
[366257818,1750164716625,-492.63,0.00017095,2]
[366257819,1750164716637,-3973.97,0.00017095,2]
[366257820,1750164716649,-490.0,0.00017095,2]
[366257821,1750164716661,-623.14,0.00017095,2]
[366257822,1750164716673,-490.0,0.00017095,2]
[366257823,1750164716684,-490.0,0.00017095,2]
[366257824,1750164716695,-1069.77,0.00017095,2]
[366257825,1750164716707,-490.0,0.00017095,2]
[366257826,1750164716719,-490.0,0.00017095,2]